[Event "*** Titled Tuesday Blitz"]
[Site "Chess.com"]
[Date "2020.04.07"]
[Round "4"]
[White "GOGIEFF"]
[Black "BobanBogosavljevic"]
[Result "1/2-1/2"]
[WhiteElo "2944"]
[BlackElo "2765"]
[TimeControl "180+1"]
[EndTime "13:41:02 PDT"]
[Termination "Game drawn by agreement"]

1. d4 {[%clk 0:03:00.9]} 1... d5 {[%clk 0:02:56.6]} 2. c4 {[%clk 0:03:01.3]}
2... c6 {[%clk 0:02:57]} 3. cxd5 {[%clk 0:03:00.1]} 3... cxd5 {[%clk 0:02:56.6]}
4. Bf4 {[%clk 0:03:00.6]} 4... Nf6 {[%clk 0:02:56.4]} 5. e3 {[%clk 0:03:00.8]}
5... Nc6 {[%clk 0:02:56.5]} 6. Nc3 {[%clk 0:03:00.3]} 6... a6 {[%clk 0:02:56.7]}
7. Be2 {[%clk 0:03:00.3]} 7... Bf5 {[%clk 0:02:56.1]} 8. g4 {[%clk 0:03:00.3]}
8... Bg6 {[%clk 0:02:42.4]} 9. h4 {[%clk 0:02:58.3]} 9... h5 {[%clk 0:02:41.9]}
10. g5 {[%clk 0:02:31.7]} 10... Ne4 {[%clk 0:02:41.1]} 11. Nxe4 {[%clk
0:02:17.7]} 11... Bxe4 {[%clk 0:02:39.8]} 12. Nf3 {[%clk 0:02:18.3]} 12... e6
{[%clk 0:02:38.6]} 13. O-O {[%clk 0:02:17.8]} 13... Bd6 {[%clk 0:02:25.7]} 14.
Ne5 {[%clk 0:02:17.5]} 14... Nxe5 {[%clk 0:02:20.1]} 15. dxe5 {[%clk 0:02:16.6]}
15... Be7 {[%clk 0:02:18.9]} 16. Rc1 {[%clk 0:02:02]} 16... g6 {[%clk 0:02:05]}
17. Qb3 {[%clk 0:01:39.5]} 17... b5 {[%clk 0:01:27.6]} 18. Rfd1 {[%clk
0:01:36.8]} 18... Qb6 {[%clk 0:01:23]} 19. Qc3 {[%clk 0:01:29.8]} 19... O-O
{[%clk 0:01:13.8]} 20. Qc7 {[%clk 0:01:29.3]} 20... Bd8 {[%clk 0:01:10.3]} 21.
Qxb6 {[%clk 0:01:20.1]} 21... Bxb6 {[%clk 0:01:11.2]} 22. Rc6 {[%clk 0:01:18.5]}
22... Rab8 {[%clk 0:01:11.3]} 23. f3 {[%clk 0:01:18.2]} 23... Bf5 {[%clk
0:01:08]} 24. Kg2 {[%clk 0:01:15.5]} 24... Rfc8 {[%clk 0:01:03.8]} 25. Rdc1
{[%clk 0:01:14.4]} 25... Rxc6 {[%clk 0:01:01.8]} 26. Rxc6 {[%clk 0:01:15.3]}
26... Bb1 {[%clk 0:01:01.4]} 27. a3 {[%clk 0:01:07.7]} 27... Kf8 {[%clk
0:01:01.6]} 28. b3 {[%clk 0:00:54.2]} 28... Ke7 {[%clk 0:00:56.3]} 29. Kf2
{[%clk 0:00:32.1]} 29... Kd7 {[%clk 0:00:55.9]} 30. Rd6+ {[%clk 0:00:32.4]}
30... Ke7 {[%clk 0:00:56.3]} 31. Rc6 {[%clk 0:00:31.6]} 31... Kd7 {[%clk
0:00:52.3]} 32. Rd6+ {[%clk 0:00:31.8]} 32... Ke7 {[%clk 0:00:52.6]} 33. Bg3
{[%clk 0:00:30.6]} 33... Bc2 {[%clk 0:00:49.3]} 34. b4 {[%clk 0:00:29.9]} 34...
Bb3 {[%clk 0:00:48.9]} 35. f4 {[%clk 0:00:27.4]} 35... Bc4 {[%clk 0:00:43.5]}
36. Kf3 {[%clk 0:00:27.7]} 36... a5 {[%clk 0:00:40.4]} 37. Be1 {[%clk
0:00:27.1]} 37... a4 {[%clk 0:00:40.6]} 38. Bc3 {[%clk 0:00:25.5]} 38... Bxe2+
{[%clk 0:00:28.6]} 39. Kxe2 {[%clk 0:00:25]} 39... Bc7 {[%clk 0:00:27]} 40. Ra6
{[%clk 0:00:22.7]} 40... Rb6 {[%clk 0:00:25.1]} 41. Ra7 {[%clk 0:00:20]} 41...
Kd7 {[%clk 0:00:24]} 42. Bd4 {[%clk 0:00:20.1]} 42... Rc6 {[%clk 0:00:22.9]} 43.
Bc5 {[%clk 0:00:19.9]} 43... Kc8 {[%clk 0:00:23.2]} 44. Bd6 {[%clk 0:00:19.1]}
44... Kb8 {[%clk 0:00:19.5]} 45. Rxc7 {[%clk 0:00:16.7]} 45... Rxc7 {[%clk
0:00:19.5]} 46. Kd3 {[%clk 0:00:17.1]} 46... Kb7 {[%clk 0:00:19.6]} 47. Bxc7
{[%clk 0:00:17]} 47... Kxc7 {[%clk 0:00:20.1]} 48. Kd4 {[%clk 0:00:17.4]} 48...
Kc6 {[%clk 0:00:20.5]} 49. Kd3 {[%clk 0:00:17.8]} 49... Kb6 {[%clk 0:00:20.6]}
50. Kd4 {[%clk 0:00:18]} 50... Kc6 {[%clk 0:00:21.1]} 51. Kd3 {[%clk 0:00:18.4]}
51... Kb6 {[%clk 0:00:21.5]} 52. Kd4 {[%clk 0:00:17.5]} 1/2-1/2

[Event "*** Titled Tuesday Blitz"]
[Site "Chess.com"]
[Date "2020.04.07"]
[Round "4"]
[White "MisaPap"]
[Black "thedjoker98"]
[Result "0-1"]
[WhiteElo "2651"]
[BlackElo "2479"]
[TimeControl "180+1"]
[EndTime "13:41:03 PDT"]
[Termination "thedjoker98 won on time"]

1. e4 {[%clk 0:03:00.9]} 1... e5 {[%clk 0:03:00.3]} 2. Nf3 {[%clk 0:03:00.6]}
2... Nc6 {[%clk 0:03:00.8]} 3. Bc4 {[%clk 0:03:01.1]} 3... Bc5 {[%clk
0:03:00.8]} 4. b4 {[%clk 0:03:00.5]} 4... Bxb4 {[%clk 0:03:00.8]} 5. c3 {[%clk
0:03:00.6]} 5... Ba5 {[%clk 0:03:01.5]} 6. d4 {[%clk 0:03:00.5]} 6... d6 {[%clk
0:03:01.5]} 7. dxe5 {[%clk 0:02:51.7]} 7... dxe5 {[%clk 0:02:48.2]} 8. Qb3
{[%clk 0:02:51]} 8... Qf6 {[%clk 0:02:46]} 9. O-O {[%clk 0:02:47.2]} 9... Nge7
{[%clk 0:02:42.5]} 10. Bg5 {[%clk 0:02:41.3]} 10... Qg6 {[%clk 0:02:41.9]} 11.
Bxe7 {[%clk 0:02:37.2]} 11... Kxe7 {[%clk 0:02:36.9]} 12. Bd5 {[%clk 0:02:37.1]}
12... Bb6 {[%clk 0:01:59]} 13. Nbd2 {[%clk 0:02:35]} 13... Bh3 {[%clk
0:01:35.8]} 14. Nh4 {[%clk 0:02:26.5]} 14... Qh5 {[%clk 0:01:30.4]} 15. Ndf3
{[%clk 0:02:19]} 15... Be6 {[%clk 0:01:23.5]} 16. Qa3+ {[%clk 0:02:09]} 16...
Kf6 {[%clk 0:01:23.1]} 17. h3 {[%clk 0:01:17.8]} 17... g5 {[%clk 0:01:16.1]} 18.
Bxe6 {[%clk 0:01:16.4]} 18... fxe6 {[%clk 0:01:14.2]} 19. g4 {[%clk 0:01:09.6]}
19... Qh6 {[%clk 0:01:13.8]} 20. Kh2 {[%clk 0:01:00.3]} 20... Qf8 {[%clk
0:00:59.1]} 21. Qc1 {[%clk 0:00:49.1]} 21... gxh4 {[%clk 0:00:46.2]} 22. Nxh4
{[%clk 0:00:42.8]} 22... h6 {[%clk 0:00:31.3]} 23. f4 {[%clk 0:00:40.6]} 23...
Kg7 {[%clk 0:00:24.8]} 24. fxe5 {[%clk 0:00:39.2]} 24... Qc5 {[%clk 0:00:24.9]}
25. Nf3 {[%clk 0:00:18.4]} 25... Nxe5 {[%clk 0:00:23.4]} 26. Nd4 {[%clk
0:00:18.2]} 26... Rae8 {[%clk 0:00:20.7]} 27. Qf4 {[%clk 0:00:15.4]} 27... Rhf8
{[%clk 0:00:20.3]} 28. Qxf8+ {[%clk 0:00:06.7]} 28... Qxf8 {[%clk 0:00:18.7]}
29. Rxf8 {[%clk 0:00:07.2]} 29... Kxf8 {[%clk 0:00:19.6]} 30. Rf1+ {[%clk
0:00:05.7]} 30... Kg7 {[%clk 0:00:19.7]} 31. Kg3 {[%clk 0:00:05.6]} 31... Ng6
{[%clk 0:00:18.3]} 32. h4 {[%clk 0:00:04.8]} 32... Bxd4 {[%clk 0:00:18]} 33.
cxd4 {[%clk 0:00:04.8]} 33... Rd8 {[%clk 0:00:18.9]} 34. h5 {[%clk 0:00:04.9]}
34... Ne7 {[%clk 0:00:19.1]} 35. Rd1 {[%clk 0:00:02.5]} 35... Nc6 {[%clk
0:00:19]} 36. d5 {[%clk 0:00:02.9]} 36... exd5 {[%clk 0:00:19.3]} 37. exd5
{[%clk 0:00:03.8]} 37... Ne7 {[%clk 0:00:19.8]} 38. Rb1 {[%clk 0:00:04.1]} 38...
b6 {[%clk 0:00:19.4]} 0-1

[Event "*** Titled Tuesday Blitz"]
[Site "Chess.com"]
[Date "2020.04.07"]
[Round "4"]
[White "Jbd735"]
[Black "Hangar-18"]
[Result "0-1"]
[WhiteElo "2449"]
[BlackElo "2348"]
[TimeControl "180+1"]
[EndTime "13:41:04 PDT"]
[Termination "Hangar-18 won on time"]

1. e4 {[%clk 0:03:00.9]} 1... e6 {[%clk 0:03:00.9]} 2. d4 {[%clk 0:03:00.8]}
2... c5 {[%clk 0:03:01.8]} 3. Nf3 {[%clk 0:02:59]} 3... cxd4 {[%clk 0:03:02]} 4.
Nxd4 {[%clk 0:02:59.2]} 4... Nc6 {[%clk 0:03:01.2]} 5. Nc3 {[%clk 0:02:58.3]}
5... Qc7 {[%clk 0:03:01.4]} 6. Be3 {[%clk 0:02:23.3]} 6... a6 {[%clk 0:03:01.2]}
7. Bd3 {[%clk 0:02:13.5]} 7... Nf6 {[%clk 0:03:00]} 8. O-O {[%clk 0:02:12.6]}
8... h5 {[%clk 0:02:59.8]} 9. h3 {[%clk 0:01:47.9]} 9... Be7 {[%clk 0:02:35.8]}
10. Qe2 {[%clk 0:01:34.7]} 10... b5 {[%clk 0:02:34.1]} 11. Nxc6 {[%clk
0:01:28.5]} 11... Qxc6 {[%clk 0:02:33.9]} 12. a3 {[%clk 0:00:58.4]} 12... Bb7
{[%clk 0:02:32.6]} 13. Rad1 {[%clk 0:00:52.5]} 13... Kf8 {[%clk 0:02:04.8]} 14.
f4 {[%clk 0:00:51.7]} 14... b4 {[%clk 0:01:58.9]} 15. axb4 {[%clk 0:00:49.3]}
15... Bxb4 {[%clk 0:01:59.8]} 16. e5 {[%clk 0:00:43.8]} 16... Bxc3 {[%clk
0:01:59.9]} 17. bxc3 {[%clk 0:00:38.4]} 17... Nd5 {[%clk 0:01:57.9]} 18. Bd4
{[%clk 0:00:37]} 18... Nxc3 {[%clk 0:01:49.2]} 19. Bxc3 {[%clk 0:00:36.2]} 19...
Qxc3 {[%clk 0:01:50.1]} 20. f5 {[%clk 0:00:36.1]} 20... Kg8 {[%clk 0:01:18.4]}
21. Rf2 {[%clk 0:00:34.5]} 21... exf5 {[%clk 0:01:04.4]} 22. Rxf5 {[%clk
0:00:26.5]} 22... Re8 {[%clk 0:00:52.3]} 23. Rdf1 {[%clk 0:00:24.9]} 23... Bd5
{[%clk 0:00:52.5]} 24. Qe3 {[%clk 0:00:17.2]} 24... Qc6 {[%clk 0:00:45.8]} 25.
Rg5 {[%clk 0:00:14.5]} 25... h4 {[%clk 0:00:31.5]} 26. Qf4 {[%clk 0:00:11.1]}
26... Rh6 {[%clk 0:00:29.1]} 27. Qg4 {[%clk 0:00:10]} 27... Qc5+ {[%clk
0:00:25.4]} 28. Kh1 {[%clk 0:00:08.7]} 28... Qf8 {[%clk 0:00:25.7]} 29. Qxd7
{[%clk 0:00:07.7]} 29... Rd8 {[%clk 0:00:12.4]} 30. Qa7 {[%clk 0:00:05.3]} 30...
Qb4 {[%clk 0:00:06.5]} 31. Qe3 {[%clk 0:00:03.5]} 31... Qe7 {[%clk 0:00:05.5]}
32. Rgf5 {[%clk 0:00:02.7]} 32... Rg6 {[%clk 0:00:04]} 33. R5f2 {[%clk
0:00:02.5]} 33... Rg3 {[%clk 0:00:03.9]} 34. Qf4 {[%clk 0:00:02.2]} 34... Re8
{[%clk 0:00:04.2]} 35. Kh2 {[%clk 0:00:01.2]} 35... Qxe5 {[%clk 0:00:04.4]} 36.
Qxe5 {[%clk 0:00:01.2]} 36... Rxe5 {[%clk 0:00:05.3]} 0-1

[Event "*** Titled Tuesday Blitz"]
[Site "Chess.com"]
[Date "2020.04.07"]
[Round "4"]
[White "josiwales"]
[Black "kleinebeer98"]
[Result "0-1"]
[WhiteElo "2522"]
[BlackElo "2718"]
[TimeControl "180+1"]
[EndTime "13:41:05 PDT"]
[Termination "kleinebeer98 won on time"]

1. e4 {[%clk 0:03:00.9]} 1... e5 {[%clk 0:02:57.3]} 2. Nf3 {[%clk 0:03:01]} 2...
Nc6 {[%clk 0:02:57.5]} 3. Bc4 {[%clk 0:03:01.3]} 3... Nf6 {[%clk 0:02:57.4]} 4.
d3 {[%clk 0:03:01.3]} 4... h6 {[%clk 0:02:57.6]} 5. O-O {[%clk 0:03:01.4]} 5...
d6 {[%clk 0:02:57.9]} 6. c3 {[%clk 0:03:00.4]} 6... g5 {[%clk 0:02:58.2]} 7. a4
{[%clk 0:02:58.7]} 7... g4 {[%clk 0:02:58.4]} 8. Ne1 {[%clk 0:02:52.6]} 8... h5
{[%clk 0:02:57.9]} 9. Bg5 {[%clk 0:02:51.3]} 9... h4 {[%clk 0:02:56.3]} 10. f4
{[%clk 0:02:48.1]} 10... Bh6 {[%clk 0:02:51.1]} 11. Nc2 {[%clk 0:01:57.8]} 11...
exf4 {[%clk 0:02:35.5]} 12. Bxh6 {[%clk 0:01:48.5]} 12... Rxh6 {[%clk
0:02:34.7]} 13. Rxf4 {[%clk 0:01:49.4]} 13... Ne5 {[%clk 0:02:32.1]} 14. Bb3
{[%clk 0:01:45]} 14... h3 {[%clk 0:02:22.1]} 15. g3 {[%clk 0:01:37.3]} 15...
Nf3+ {[%clk 0:02:08.7]} 16. Kh1 {[%clk 0:01:37.3]} 16... Qe7 {[%clk 0:01:54.8]}
17. Nd2 {[%clk 0:01:36.3]} 17... Ne5 {[%clk 0:01:55.2]} 18. Qe2 {[%clk 0:01:32]}
18... Be6 {[%clk 0:01:50]} 19. Bxe6 {[%clk 0:01:21.7]} 19... fxe6 {[%clk
0:01:50.9]} 20. Raf1 {[%clk 0:01:19.4]} 20... O-O-O {[%clk 0:01:24.6]} 21. d4
{[%clk 0:01:19.4]} 21... Ned7 {[%clk 0:01:20.7]} 22. Ne3 {[%clk 0:01:08.8]}
22... e5 {[%clk 0:01:07]} 23. Nf5 {[%clk 0:00:58.2]} 23... Qf8 {[%clk
0:00:50.7]} 24. R4f2 {[%clk 0:00:53.7]} 24... Rh7 {[%clk 0:00:47.8]} 25. a5
{[%clk 0:00:45.3]} 25... a6 {[%clk 0:00:45.6]} 26. Qc4 {[%clk 0:00:43.1]} 26...
Kb8 {[%clk 0:00:43.2]} 27. Ne3 {[%clk 0:00:32.7]} 27... exd4 {[%clk 0:00:40.6]}
28. cxd4 {[%clk 0:00:31.8]} 28... Qe7 {[%clk 0:00:39]} 29. Nf5 {[%clk
0:00:26.8]} 29... Qe8 {[%clk 0:00:38.7]} 30. Qd3 {[%clk 0:00:18.3]} 30... Qg6
{[%clk 0:00:32]} 31. Nh4 {[%clk 0:00:15.1]} 31... Qh5 {[%clk 0:00:28.7]} 32.
Rxf6 {[%clk 0:00:12.7]} 32... Nxf6 {[%clk 0:00:29.6]} 33. Rxf6 {[%clk
0:00:13.5]} 33... Qxa5 {[%clk 0:00:28.2]} 34. e5 {[%clk 0:00:12.6]} 34... Re7
{[%clk 0:00:23.4]} 35. Nf5 {[%clk 0:00:09]} 35... Ree8 {[%clk 0:00:17.6]} 36. e6
{[%clk 0:00:07.2]} 36... d5 {[%clk 0:00:17.9]} 37. e7 {[%clk 0:00:05.8]} 37...
Rd7 {[%clk 0:00:18.2]} 38. Qe2 {[%clk 0:00:02.8]} 38... Qb4 {[%clk 0:00:13.6]}
39. Rf8 {[%clk 0:00:01.2]} 39... Rxf8 {[%clk 0:00:12.4]} 40. e8=Q+ {[%clk
0:00:01.6]} 40... Rd8 {[%clk 0:00:11.6]} 0-1

[Event "*** Titled Tuesday Blitz"]
[Site "Chess.com"]
[Date "2020.04.07"]
[Round "4"]
[White "ShadyH9"]
[Black "vaps"]
[Result "1-0"]
[WhiteElo "2288"]
[BlackElo "1979"]
[TimeControl "180+1"]
[EndTime "13:41:05 PDT"]
[Termination "ShadyH9 won on time"]

1. d4 {[%clk 0:03:00.9]} 1... Nf6 {[%clk 0:02:59.3]} 2. Nf3 {[%clk 0:03:01.3]}
2... e6 {[%clk 0:02:59.6]} 3. g3 {[%clk 0:03:01.4]} 3... d5 {[%clk 0:02:58.9]}
4. Bg2 {[%clk 0:03:01.6]} 4... Be7 {[%clk 0:02:59.4]} 5. c4 {[%clk 0:03:02]}
5... O-O {[%clk 0:02:58.6]} 6. Nc3 {[%clk 0:03:02.6]} 6... c6 {[%clk 0:02:54.2]}
7. O-O {[%clk 0:03:00.5]} 7... Nbd7 {[%clk 0:02:46.4]} 8. Qd3 {[%clk 0:02:59.7]}
8... b6 {[%clk 0:02:33]} 9. Rd1 {[%clk 0:02:59.8]} 9... Ba6 {[%clk 0:02:26.6]}
10. b3 {[%clk 0:03:00.2]} 10... Rc8 {[%clk 0:02:07.6]} 11. e4 {[%clk 0:03:00.3]}
11... dxc4 {[%clk 0:01:56.3]} 12. bxc4 {[%clk 0:02:59.6]} 12... b5 {[%clk
0:01:47.5]} 13. c5 {[%clk 0:02:22.6]} 13... Qa5 {[%clk 0:01:31.5]} 14. Qc2
{[%clk 0:01:56.6]} 14... b4 {[%clk 0:01:29]} 15. Ne2 {[%clk 0:01:49.8]} 15... b3
{[%clk 0:01:18.4]} 16. Qb2 {[%clk 0:01:50]} 16... Nxe4 {[%clk 0:01:05.4]} 17.
axb3 {[%clk 0:01:48]} 17... Qb5 {[%clk 0:00:40.9]} 18. Bf1 {[%clk 0:01:47.3]}
18... Ndxc5 {[%clk 0:00:26.8]} 19. Nc3 {[%clk 0:01:29.1]} 19... Qxb3 {[%clk
0:00:22.9]} 20. Nxe4 {[%clk 0:01:17.3]} 20... Qxb2 {[%clk 0:00:19.9]} 21. Bxb2
{[%clk 0:01:15.8]} 21... Bxf1 {[%clk 0:00:20.2]} 22. Nxc5 {[%clk 0:01:14.8]}
22... Be2 {[%clk 0:00:19.4]} 23. Ne5 {[%clk 0:01:07.6]} 23... Bxd1 {[%clk
0:00:17.1]} 24. Rxd1 {[%clk 0:01:08.5]} 24... f6 {[%clk 0:00:15]} 25. Nc4 {[%clk
0:00:54.3]} 25... Bxc5 {[%clk 0:00:11.6]} 26. dxc5 {[%clk 0:00:55.2]} 26... e5
{[%clk 0:00:09.5]} 27. Ra1 {[%clk 0:00:52.7]} 27... Rb8 {[%clk 0:00:06.4]} 28.
Bc3 {[%clk 0:00:49.5]} 28... Rb3 {[%clk 0:00:04.7]} 29. Bd2 {[%clk 0:00:29.5]}
29... Rfb8 {[%clk 0:00:04]} 30. Rxa7 {[%clk 0:00:28.7]} 30... R8b7 {[%clk
0:00:03.4]} 31. Ra8+ {[%clk 0:00:24.1]} 31... Rb8 {[%clk 0:00:02]} 32. Rxb8+
{[%clk 0:00:16.4]} 32... Rxb8 {[%clk 0:00:02.9]} 33. Na5 {[%clk 0:00:17]} 33...
Kf7 {[%clk 0:00:02.2]} 34. Nxc6 {[%clk 0:00:16.5]} 34... Rc8 {[%clk 0:00:02.1]}
35. Nb4 {[%clk 0:00:13.8]} 35... Rxc5 {[%clk 0:00:02.1]} 36. Kf1 {[%clk
0:00:13]} 36... Rc4 {[%clk 0:00:02]} 37. Ke2 {[%clk 0:00:12.9]} 37... Ke6 {[%clk
0:00:02.1]} 38. h3 {[%clk 0:00:11.8]} 1-0

[Event "*** Titled Tuesday Blitz"]
[Site "Chess.com"]
[Date "2020.04.07"]
[Round "4"]
[White "Vyacheslav_N"]
[Black "LivajaM"]
[Result "0-1"]
[WhiteElo "2448"]
[BlackElo "2319"]
[TimeControl "180+1"]
[EndTime "13:41:06 PDT"]
[Termination "LivajaM won on time"]

1. e4 {[%clk 0:03:00.9]} 1... c5 {[%clk 0:02:59.6]} 2. Nf3 {[%clk 0:02:58.5]}
2... Nc6 {[%clk 0:02:55.8]} 3. d4 {[%clk 0:02:57.1]} 3... cxd4 {[%clk
0:02:55.6]} 4. Nxd4 {[%clk 0:02:58]} 4... Qc7 {[%clk 0:02:55.6]} 5. c4 {[%clk
0:02:57.4]} 5... e6 {[%clk 0:02:53.4]} 6. Nc3 {[%clk 0:02:57.2]} 6... d6 {[%clk
0:02:53.6]} 7. Be3 {[%clk 0:02:56.2]} 7... a6 {[%clk 0:02:54]} 8. Qd2 {[%clk
0:02:56.1]} 8... Nf6 {[%clk 0:02:54.2]} 9. Be2 {[%clk 0:02:56.2]} 9... Be7
{[%clk 0:02:54.2]} 10. O-O {[%clk 0:02:56.8]} 10... O-O {[%clk 0:02:53.4]} 11.
Rac1 {[%clk 0:02:55.2]} 11... Qa5 {[%clk 0:02:52.9]} 12. f3 {[%clk 0:02:55.4]}
12... Re8 {[%clk 0:02:51.7]} 13. Rfd1 {[%clk 0:02:56]} 13... Bd7 {[%clk
0:02:51.2]} 14. a3 {[%clk 0:02:46.3]} 14... Rac8 {[%clk 0:02:50.3]} 15. Nc2
{[%clk 0:02:36]} 15... Ne5 {[%clk 0:02:45.9]} 16. b4 {[%clk 0:02:27.9]} 16...
Qc7 {[%clk 0:02:45]} 17. Nd4 {[%clk 0:02:19.2]} 17... Nxc4 {[%clk 0:02:29.2]}
18. Bxc4 {[%clk 0:02:20.1]} 18... Qxc4 {[%clk 0:02:28.4]} 19. Nd5 {[%clk
0:02:18.4]} 19... exd5 {[%clk 0:02:20.6]} 20. Rxc4 {[%clk 0:02:17.5]} 20... dxc4
{[%clk 0:02:20.6]} 21. Rc1 {[%clk 0:02:12.5]} 21... Bf8 {[%clk 0:02:02.5]} 22.
Ne2 {[%clk 0:02:12.4]} 22... b5 {[%clk 0:01:53.5]} 23. Nc3 {[%clk 0:02:10.6]}
23... Bc6 {[%clk 0:01:51.8]} 24. Rd1 {[%clk 0:02:08.9]} 24... Rcd8 {[%clk
0:01:48.2]} 25. Bd4 {[%clk 0:01:56.5]} 25... Be7 {[%clk 0:01:43.8]} 26. Re1
{[%clk 0:01:47.9]} 26... Nd7 {[%clk 0:01:43.2]} 27. f4 {[%clk 0:01:44]} 27...
Bf6 {[%clk 0:01:36.4]} 28. Bxf6 {[%clk 0:01:33.7]} 28... Nxf6 {[%clk 0:01:36.4]}
29. Qd4 {[%clk 0:01:32.6]} 29... Bb7 {[%clk 0:01:19.5]} 30. h3 {[%clk
0:01:23.3]} 30... h6 {[%clk 0:01:14.7]} 31. g4 {[%clk 0:01:23.3]} 31... Rd7
{[%clk 0:01:10.9]} 32. g5 {[%clk 0:01:14.2]} 32... hxg5 {[%clk 0:01:05.6]} 33.
fxg5 {[%clk 0:01:15.1]} 33... Nh5 {[%clk 0:01:03.9]} 34. Qf2 {[%clk 0:01:11.4]}
34... Re5 {[%clk 0:00:57.9]} 35. h4 {[%clk 0:01:10.9]} 35... Rde7 {[%clk
0:00:50.3]} 36. Rd1 {[%clk 0:01:05.3]} 36... Bxe4 {[%clk 0:00:46.4]} 37. Rxd6
{[%clk 0:01:01.8]} 37... Bd3 {[%clk 0:00:25.3]} 38. Kh2 {[%clk 0:00:48.6]} 38...
Kh7 {[%clk 0:00:23.7]} 39. Qf3 {[%clk 0:00:40.6]} 39... Bg6 {[%clk 0:00:19.2]}
40. Rd8 {[%clk 0:00:34.6]} 40... Re3 {[%clk 0:00:13.7]} 41. Qa8 {[%clk
0:00:34.6]} 41... Bf5 {[%clk 0:00:14.1]} 42. Rh8+ {[%clk 0:00:21.7]} 42... Kg6
{[%clk 0:00:14.6]} 43. Qc6+ {[%clk 0:00:21.5]} 43... R7e6 {[%clk 0:00:14.9]} 0-1

[Event "*** Titled Tuesday Blitz"]
[Site "Chess.com"]
[Date "2020.04.07"]
[Round "4"]
[White "ChesterF"]
[Black "GodDMuhammad"]
[Result "1-0"]
[WhiteElo "2489"]
[BlackElo "2316"]
[TimeControl "180+1"]
[EndTime "13:41:07 PDT"]
[Termination "ChesterF won by resignation"]

1. d4 {[%clk 0:03:00]} 1... Nf6 {[%clk 0:02:59]} 2. c4 {[%clk 0:03:00.4]} 2...
e6 {[%clk 0:02:53.5]} 3. Nc3 {[%clk 0:03:00.7]} 3... d5 {[%clk 0:02:53.3]} 4.
cxd5 {[%clk 0:03:00.1]} 4... exd5 {[%clk 0:02:53.2]} 5. Bg5 {[%clk 0:03:00.7]}
5... c6 {[%clk 0:02:53.1]} 6. e3 {[%clk 0:03:00.8]} 6... Bd6 {[%clk 0:02:52.4]}
7. Bd3 {[%clk 0:02:58.9]} 7... Nbd7 {[%clk 0:02:49.6]} 8. Qc2 {[%clk 0:02:55.5]}
8... h6 {[%clk 0:02:49.6]} 9. Bh4 {[%clk 0:02:54.8]} 9... O-O {[%clk 0:02:49.8]}
10. Nge2 {[%clk 0:02:55]} 10... Re8 {[%clk 0:02:45]} 11. g4 {[%clk 0:02:45.8]}
11... Be7 {[%clk 0:01:58.8]} 12. Rg1 {[%clk 0:02:38.5]} 12... Ne4 {[%clk
0:01:54.8]} 13. Bxe7 {[%clk 0:01:37.9]} 13... Qxe7 {[%clk 0:01:54.3]} 14. Bxe4
{[%clk 0:01:38.2]} 14... dxe4 {[%clk 0:01:54.5]} 15. h4 {[%clk 0:01:38.2]} 15...
Nf6 {[%clk 0:01:44.2]} 16. g5 {[%clk 0:01:37.1]} 16... hxg5 {[%clk 0:01:43.8]}
17. hxg5 {[%clk 0:01:37.3]} 17... Nd5 {[%clk 0:01:44.1]} 18. g6 {[%clk
0:01:26.1]} 18... fxg6 {[%clk 0:01:24.1]} 19. a3 {[%clk 0:01:22.2]} 19... Bf5
{[%clk 0:01:22.4]} 20. O-O-O {[%clk 0:01:20]} 20... b5 {[%clk 0:01:17.7]} 21.
Qb3 {[%clk 0:01:14.5]} 21... Qe6 {[%clk 0:01:10.6]} 22. Nxd5 {[%clk 0:01:07]}
22... cxd5 {[%clk 0:01:08]} 23. Nf4 {[%clk 0:01:06.8]} 23... Qd6 {[%clk
0:01:04.3]} 24. Qxd5+ {[%clk 0:00:58.1]} 24... Qxd5 {[%clk 0:01:01.4]} 25. Nxd5
{[%clk 0:00:59]} 25... a5 {[%clk 0:00:58.1]} 26. Kd2 {[%clk 0:00:56.3]} 26...
Ra7 {[%clk 0:00:54.3]} 27. Rc1 {[%clk 0:00:54.5]} 27... b4 {[%clk 0:00:52.9]}
28. a4 {[%clk 0:00:39.4]} 28... Rd8 {[%clk 0:00:38.1]} 29. Nf4 {[%clk
0:00:37.7]} 29... Ra6 {[%clk 0:00:36.5]} 30. Rc7 {[%clk 0:00:34.2]} 30... Rb6
{[%clk 0:00:29.3]} 31. Rgc1 {[%clk 0:00:33.9]} 31... Rd7 {[%clk 0:00:28.9]} 32.
Rxd7 {[%clk 0:00:31.4]} 32... Bxd7 {[%clk 0:00:29.8]} 33. b3 {[%clk 0:00:31.6]}
33... g5 {[%clk 0:00:28.6]} 34. Nd5 {[%clk 0:00:29.5]} 34... Rd6 {[%clk
0:00:28.8]} 35. Nc7 {[%clk 0:00:18.6]} 35... g4 {[%clk 0:00:23.1]} 36. Rc5
{[%clk 0:00:18.6]} 36... Rc6 {[%clk 0:00:20.5]} 37. Rxc6 {[%clk 0:00:18.2]}
37... Bxc6 {[%clk 0:00:21.4]} 38. d5 {[%clk 0:00:16.5]} 38... Bd7 {[%clk
0:00:20.1]} 39. Na6 {[%clk 0:00:13.7]} 39... Kf7 {[%clk 0:00:19.4]} 40. Nc5
{[%clk 0:00:14.2]} 40... Bc8 {[%clk 0:00:19.7]} 41. Nxe4 {[%clk 0:00:14.3]}
41... Ke7 {[%clk 0:00:19.6]} 42. Ng3 {[%clk 0:00:13.9]} 42... Kd6 {[%clk
0:00:18]} 43. e4 {[%clk 0:00:14.3]} 43... Ke5 {[%clk 0:00:18.9]} 44. Ke3 {[%clk
0:00:14.8]} 44... Ba6 {[%clk 0:00:19.2]} 45. Ne2 {[%clk 0:00:14.1]} 45... Bxe2
{[%clk 0:00:18.8]} 46. Kxe2 {[%clk 0:00:14.2]} 46... g5 {[%clk 0:00:19.7]} 47.
Ke3 {[%clk 0:00:14.4]} 47... Kd6 {[%clk 0:00:20]} 48. Kd4 {[%clk 0:00:14.9]}
48... Ke7 {[%clk 0:00:20.5]} 49. e5 {[%clk 0:00:15.8]} 49... Kd7 {[%clk
0:00:20.9]} 50. Ke4 {[%clk 0:00:16.7]} 50... Ke7 {[%clk 0:00:21.3]} 51. Kf5
{[%clk 0:00:17.1]} 51... g3 {[%clk 0:00:21.9]} 52. fxg3 {[%clk 0:00:17.3]} 1-0